{"text_format":"1","workbook":"xlsx","n_sheets":7,"sheets":["Vejledning","Godkendt budget","Regnskabsskabelon","Anm. overførsel","Revideret budget","Påtegning","Liste"],"not_rendered":{"charts":0,"images":2,"macros":0,"external_links":0,"defined_names":0,"comments":0,"pivot_tables":0},"unopened":[],"bounds":{"document_bytes":16777216,"sheet_cells":100000,"rows_first":2000,"rows_last":500,"rows_between":2000,"halvings":0,"cell_chars":16384,"cell_head_chars":4096},"cells_cut":0,"cells_raw":0,"read":"whole","date_system":"1900"}

{"sheet":"Vejledning","index":0,"n_rows":2,"n_cols":20,"rows_kept":2,"cut":false,"hidden":false,"merged":[[1,1,47,9],[1,10,47,18],[1,19,47,27]]}
[]
[null,"Generelt\nFrist for indsendelse af underskrevet årsregnskab med tilhørende revisorerklæring og revisionsprotokol/ revisionsberetning samt ledelseserklæring for det bagudrettede år er senest d. 28 februar. \nDet fremgår af bevillingsbrevet, hvilken bekendtgørelse der fastlægger regler for regnskab og revision mv. for tilskuddet. Regnskabsdkabelonen bruges både af driftstilskuds- og puljer modtager.\n\nUnderskrevet regnskab vedr. driftstilskud skal fremsendes til driftstilskud@siri.dk både som pdf (påtegnet af ledelsen) og excel-fil (den udfyldte skabelon). Underskrevet regnskab vedr. pulje skal fremsendes til pulje@siri.dk både som pdf (påtegnet af ledelsen) og excel-fil (den udfyldte skabelon).\n\nDet er vigtigt at nærværende regnskabsskabelon anvendes. SIRI kan ved vurdering af, at hvis fremsendte regnskab ikke lever op til opstillede krav i regnskabsskabelonen, altid have mulighed for at afvise regnskabet.\n\nYderligere spørgsmål\nAlle spørgsmål om udarbejdelse og indsendelse af regnskab vedr. driftstilskud kan sendes til driftstilskud@siri.dk.\nAlle spørgsmål om udarbejdelse og indsendelse af regnskab vedr. pulje kan sendes til pulje@siri.dk.\n\nRevision af regnskab\nIndsendte regnskab skal være forsynet med revisorerklæring og revisionsberetning samt ledelseserklæring. Der henvises til bekendtgørelsen i afsnit ”Revision af regnskab” §20 - §28 for nærmere bestemmelser for revision af tilskudsregnskabet.\n\nFlere årig puljemidler\nSelvom  puljemidlerne er givet flere årig, så skal der afrapporteres årligt på anvendelse af tilskudsmidler. SIRI skal modtage et revideret afsluttende årsregnskab inkl. evt. revisionsbemærkninger pr. tilskudsår.\n\nAnmodning af uforbrugte midler\nDriftstilskud skal som udgangspunkt altid anvendes inden for den anviste tilskudsperiode. \n\nFaner i regnskabsskabelon\n1. Vejledning: Denne vejledning angiver kort beskrivelse af indholdets øvrige faner.\n2. Godkendt budget: Senest godkendt budget for projektåret hvor der aflægges regnskab for.\n3. Regnskabsskabelon: Det er her projektets regnskab skal indtastes.  \n4. Anm. overførsel: Denne skabelon skal anvendes i forbindelse med anmodning af uforbrugte midler.\n5. Påtegning: Denne skabelon kan med fordele anvendes for tilskudsmodtagere som modtager bevillinger under 100.000 kr. \n\n\n\n",null,null,null,null,null,null,null,null,"2. Godkendt budget\nHer skal indsættes senest godkendt budget i skabelonen. \n\nDette er vigtigt, da gennemgangen af regnskabet vil validere faktiske udgifter op mod budgettet. Hvis der er væsentlige afvigelser eller udgifter som ikke har været i godkendt budget, så skal der indsættes en bemærkning i regnskabet. \n\n3. Regnskabskabelon\nIndtastning af de faktiske udgifter skal som udgangspunkt have samme udgiftsposter som den er i budgettet. Hvis dette ikke er tilfældet, kan der indsættes nye linjer i skabelonen. \n\nLønudgifter\nDet er vigtigt, at der under lønudgifter udspecificeres de forskellige lønudgifter som er tilknyttet projektet. \n\nFaktiske lønudgifter indtastes i regnskabsskabelonen efter samme fremgangsmåde som i budgetskabelonen. Dvs. der skal angives hvor mange timer og satsen for hver medarbejder i projektet. De noterede timesatser i regnskabet skal være i overensstemmelse med det tidligere godkendte budget.  Regnearket beregner selv de samlede lønudgifter. Bemærk, at regnskaber uden timeantal og timesats vil ikke blive godkendt af SIRI.\n\nTransport\nAf skabelonen fremgår, at transport kan foregå i egen bil eller med offentlig transport. Bemærk, at tilskud til transport primært ydes til offentlig transport. Såfremt, det ikke er muligt at anvende offentlig transport, ydes der tilskud til projektet med transport i egen bil. Dette ydes på baggrund af statens laveste takstsats. Budgetskabelonen udfyldes med antal kilometer og kilometersats, hvorefter skabelonen beregner det samlede beløb. Offentlig transport angives som et samlet beløb. \n\nAdministrationsudgifter\nHer skal anføres de faktiske udgifter som projektet har til administrationsudgifter. Dette omfatter bl.a. forsikringer, revision og andet. Bemærk, at revision skal udføres af en statsautoriseret eller registreret revisor. Dette er undtaget, hvis der er projekter med en bevilling som er under 100.000 kr. Såfremt revisor også udfører bogføringsservice, skal det fremgå særskilt, hvor meget dette vedrører af det samlede beløb til revisor. Det kan ikke slås sammen med udgifter til revision.\n\nMedfinansiering\nSåfremt projektet modtager støtte fra andre end SIRI, skal det fremgå af budgettet under medfinansiering.\n\n\n",null,null,null,null,null,null,null,null,"Særligt vedr. moms \nSom hovedregel dækker tilskud købsmoms og budgetskabelonen skal således udfyldes inkl. moms.  \n\nDer er dog undtagelser, idet tilskudsmodtagere, der er omfattet af en momskompensationsordning eller på anden vis vil få dækket eller afløftet momsen, skal udfylde eksklusiv købsmoms, såfremt de er omfattet af pågældende refusionsmulighed.\nDette gælder fx for:  \n- Statsfinansierede selvejende institutioner omfattet af Bekendtgørelse om momskompensation for erhvervsrettet uddannelse, institutioner for almengymnasiale uddannelser og almen voksenuddannelse, erhvervs-akademier, professionshøjskoler m.fl. \n- Universiteter, jf. § 23 i Universitetsloven \n- Øvrige statsfinansierede selvejende institutioner, der har adgang til momsrefusion via Finansministeriets momspulje. (Jf. Budgetvejledningens pkt. 2.4.7 Ikke-fradragsberettiget købsmoms). \n- Kommunale og regionale tilskudsmodtagere omfattet af Bekendtgørelse om momsrefusionsordning for kommuner og regioner.\n\n4. Anmodning om overførsel\nTilskudsmodtagere, som ønsker at søge om overførsel af uforbrugte tilskudsbeløb fra et projektår til et efterfølgende projektår, skal indsende  en skriftlig og begrundet anmodning herom. Der skal både forklares årsagen til mindreforbrug og begrundes for anvendelse heraf.\nDer skal også vedlægges et revideret budget, hvor det uforbrugte beløb, som ønskes overført, er indarbejdet. \n\nVedr. driftstilskud: Samtlige punkter i skabelonen skal udfyldes og sendes sammen med et revideret budget til Driftstilskud@siri.dk.\n\nVedr. pulje: Samtlige punkter i skabelonen skal udfyldes og sendes sammen med et revideret budget til pulje@siri.dk.\n\n5. Påtegning\nDenne skabeln kan medfordele anvendes ved projekter som modtager besvillinger under 100.000 kr.\n"]

{"sheet":"Godkendt budget","index":1,"n_rows":38,"n_cols":4,"rows_kept":38,"cut":false,"hidden":false,"merged":[[6,1,6,3],[0,0,0,2],[2,1,2,3],[3,1,3,3],[4,1,4,3],[5,1,5,3],[26,0,26,2],[7,1,7,3],[8,1,8,3],[9,1,9,3],[10,1,10,3],[11,0,11,3],[12,0,12,3],[20,0,20,2],[22,0,22,2],[23,0,23,2],[24,0,24,2],[25,0,25,2],[38,0,38,3],[27,0,27,2],[28,0,28,2],[29,0,29,2],[30,0,30,2],[31,0,31,2],[32,0,32,2],[33,0,33,2],[34,0,34,3],[35,0,35,2],[36,0,36,3],[37,0,37,3]]}
["Godkendt budget 2024 "]
[]
["Projektets titel"]
["Projektperiode","01.01.2024-31.12.2024"]
["Tilskudsmodtagers navn"]
["Tilskudsmodtagers CVR-nr."]
["Tilskudsmodtagers adresse"]
["Tilskudsmodtagers tlf.nr."]
["Modtagergruppe","(Vælg fra drop down-menu)"]
["Ansøgt beløb (udfyldes automatisk)",{"$f":"D34","v":0}]
["Dato for udfyldelse af skabelon"]
[]
["Budgetår 2024"]
["Lønudgifter","Antal timer","Sats pr. time","Beløb"]
["Løn til projektleder",0,0,{"$f":"B15*C15","v":0}]
["Løn til ",0,0,{"$f":"B16*C16","v":0}]
["Løn til ",0,0,{"$f":"B17*C17","v":0}]
["Løn til ",0,0,{"$f":"B18*C18","v":0}]
["Løn til ",0,0,0]
["Transportudgifter","Antal km.","Sats pr. km.","Beløb"]
["Offentlig transport",null,null,0]
["Transport i egen bil",0,2.23,{"$f":"B22*C22","v":0}]
["Administrationsudgifter",null,null,"Beløb"]
["Forsikringer",null,null,0]
["Revision",null,null,0]
["Bogføring",null,null,0]
["Andre administrationsudgifter",null,null,0]
["Driftsudgifter ",null,null,"Beløb"]
["Indkøb af materialer, udstyr og inventar (maks. DKK 50.000)",null,null,0]
["Leje af lokale og tilhørende udstyr",null,null,0]
["Deltagelse i kurser og konferencer",null,null,0]
["Forplejning ved kurser og konferencer",null,null,0]
["Andre driftsudgifter",null,null,0]
["Udgifter i alt",null,null,{"$f":"SUM(D15:D33)","v":0}]
[]
["Evt. medfinansiering, beløb",null,null,0]
[]
["Evt. bemærkninger til budgettet (udspecificering af satser, antal, stykpris, omfang mv.)\n"]

{"sheet":"Regnskabsskabelon","index":2,"n_rows":41,"n_cols":4,"rows_kept":41,"cut":false,"hidden":false,"merged":[[8,0,8,3],[5,1,5,3],[2,1,2,3],[7,0,7,3],[0,0,0,2],[1,0,1,3],[3,1,3,3],[4,1,4,3],[6,1,6,3],[21,0,21,2],[22,0,22,2],[19,0,19,2],[20,0,20,2],[16,0,16,2],[18,0,18,2],[27,0,27,2],[28,0,28,2],[25,0,25,2],[26,0,26,2],[23,0,23,2],[24,0,24,2],[33,0,33,3],[29,0,29,2],[30,0,30,2],[31,0,31,2],[32,0,32,2],[37,0,37,3],[38,1,38,3],[39,1,39,3],[40,1,40,3],[34,0,34,3],[35,0,35,3]]}
["Regnskabsskabelon"]
[]
["Dato for udfyldelse af skabelon"]
["Projektperiode","01.01.2024-31.12.2024"]
["Projektets j.nr. "]
["Tilskud fra SIRI",0]
["Overførsel fra tidligere år",0]
[]
["Regnskab 2024"]
["Lønudgifter","Antal timer","Sats pr. time","Beløb"]
["Løn til projektleder",0,0,{"$f":"B11*C11","v":0}]
["Løn til ",0,0,{"$f":"B12*C12","v":0}]
["Løn til ",0,0,{"$f":"B13*C13","v":0}]
["Løn til ",0,0,{"$f":"B14*C14","v":0}]
["Løn til ",0,0,0]
["Transportudgifter","Antal km.","Sats pr. km.","Beløb"]
["Offentlig transport"]
["Transport i egen bil",null,2.23,{"$f":"B18*C18","v":0}]
["Administrationsudgifter",null,null,"Beløb"]
["Forsikringer",null,null,0]
["Revision",null,null,0]
["Bogføring",null,null,0]
["Andre administrationsudgifter",null,null,0]
["Driftsudgifter ",null,null,"Beløb"]
["Indkøb af materialer, udstyr og inventar (maks. DKK 50.000)",null,null,0]
["Leje af lokale og tilhørende udstyr",null,null,0]
["Deltagelse i kurser og konferencer",null,null,0]
["Forplejning ved kurser og konferencer",null,null,0]
["Andre driftsudgifter",null,null,0]
["Udgifter i alt",null,null,{"$f":"SUM(D11:D29)","v":0}]
["Tilskud inkl. overførsel fra tidligere år - Udgifter i alt",null,null,{"$f":"(B6+B7)-D30","v":0}]
["Tilbagebetaling af ubrugt tilskud",null,null,0]
["Anmodet om overførsel til næste år",null,null,0]
[]
["Bemærkninger til regnskab (Hvis regnskabet afviger væsentligt fra budgettet, så skal der redegøres for afvigelsen og angive evt. bemærkninger hertil)\n"]
[]
[]
["Nedenstående skal udfyldes i forbindelse med aflæggelse af regnskab"]
["Navn: (Bevillingshavers navn)"]
["Dato"]
["Underskrift"]

{"sheet":"Anm. overførsel","index":3,"n_rows":23,"n_cols":10,"rows_kept":23,"cut":false,"hidden":false,"merged":[[2,0,2,1],[2,2,2,5],[3,0,3,1],[3,2,3,5],[0,0,0,4],[4,0,4,1],[4,2,4,5],[5,0,5,1],[6,0,6,1],[8,0,8,1],[23,0,29,6],[13,0,13,6],[22,0,22,6],[5,2,5,5],[6,2,6,5],[8,2,8,5],[9,2,9,5],[10,2,10,5],[14,0,20,6]]}
["Skabelon til anmodning af mindreforburg"]
[]
["Tilskudsmodtagers navn:",null,{"$f":"'Godkendt budget'!B5:D5","v":0}]
["Tilskudsmodtagers CVR-nr.",null,{"$f":"'Godkendt budget'!B6:D6","v":0}]
["Projektets titel:",null,{"$f":"'Godkendt budget'!B3:D3","v":0}]
["Projektperiode:",null,"01.01.2024 - 31.12.2024",null,null,null,"     "]
["Projektets j.nr. ",null,{"$f":"Regnskabsskabelon!B5","v":0}]
[null,null,null,null,null,null,"     "]
["Tilskud inkl. evt. overførsel fra tidligere år",null,{"$f":"Regnskabsskabelon!B6+Regnskabsskabelon!B7","v":0}]
["Udgifter i alt",null,{"$f":"Regnskabsskabelon!D30","v":0},null,null,null,null,null,null,"     "]
["Anmodet overførsel (kr.)",null,{"$f":"Regnskabsskabelon!D33","v":0},null,null,null,"     "]
[]
["Begrundelse\n\n   ",null,null,null,null,null,null,null,null,"     "]
["Forklaring: Skriv en kort forklaring på, hvorfor tilskuddet ikke er blevet anvendt i perioden."]
[]
[null,null,null,null,null,null,null,null,null,"     "]
[]
[]
[]
[]
[]
[]
["Anvendelse: Oplys kort hvordan det overførte beløb skal anvendes."]

{"sheet":"Revideret budget","index":4,"n_rows":31,"n_cols":4,"rows_kept":31,"cut":false,"hidden":false,"merged":[[24,0,24,2],[20,0,20,2],[21,0,21,2],[15,0,15,2],[16,0,16,2],[17,0,17,2],[22,0,22,2],[23,0,23,2],[5,0,5,3],[1,0,1,3],[0,0,0,2],[28,0,28,2],[31,0,31,3],[27,0,27,3],[29,0,29,3],[30,0,30,3],[4,0,4,3],[26,0,26,2],[2,1,2,3],[18,0,18,2],[19,0,19,2],[3,1,3,3],[25,0,25,2],[13,0,13,2]]}
["Revideret budget"]
[]
["Ansøgt beløb (udfyldes automatisk)",{"$f":"Regnskabsskabelon!D33","v":0}]
["Dato for udfyldelse af skabelon"]
[]
["Revideret budget 2025"]
["Lønudgifter","Antal timer","Sats pr. time","Beløb"]
["Løn til projektleder",0,0,{"$f":"B8*C8","v":0}]
["Løn til ",0,0,{"$f":"B9*C9","v":0}]
["Løn til ",0,0,{"$f":"B10*C10","v":0}]
["Løn til ",0,0,{"$f":"B11*C11","v":0}]
["Løn til ",0,0,0]
["Transportudgifter","Antal km.","Sats pr. km.","Beløb"]
["Offentlig transport",null,null,0]
["Transport i egen bil",0,0,{"$f":"B15*C15","v":0}]
["Administrationsudgifter",null,null,"Beløb"]
["Forsikringer",null,null,0]
["Revision",null,null,0]
["Bogføring",null,null,0]
["Andre administrationsudgifter",null,null,0]
["Driftsudgifter ",null,null,"Beløb"]
["Indkøb af materialer, udstyr og inventar (maks. DKK 50.000)",null,null,0]
["Leje af lokale og tilhørende udstyr",null,null,0]
["Deltagelse i kurser og konferencer",null,null,0]
["Forplejning ved kurser og konferencer",null,null,0]
["Andre driftsudgifter",null,null,0]
["Udgifter i alt",null,null,{"$f":"SUM(D8:D26)","v":0}]
[]
["Evt. medfinansiering, beløb",null,null,0]
[]
["Evt. bemærkninger til budgettet (udspecificering af satser, antal, stykpris, omfang mv.)\n"]

{"sheet":"Påtegning","index":5,"n_rows":19,"n_cols":2,"rows_kept":19,"cut":false,"hidden":false,"merged":[[5,0,5,1],[5,2,5,4],[13,1,13,8],[15,1,15,8],[0,0,0,8],[2,0,2,3],[3,0,3,1],[3,2,3,4],[4,0,4,1],[6,0,6,1],[6,2,6,4],[16,1,16,8],[17,1,17,8],[18,1,18,8]]}
["Påtegning ved bevillinger under 100.000 kr.\n"]
[]
["Regnskab påtegnes af:"]
["Navn:"]
["Tilhørsforhold:"]
["Dato:"]
["Underskrift:"]
[]
["Jeg har kontrolleret regnskabsskema vedrørende projekt j.nr. "]
["Kontrollen er omfattet af, at tilskuddet er anvendt til de formål, som er anført i ansøgningen."]
["Desuden har jeg kontrolleret, at afholdte udgifter vedrører projektet."]
[]
["Sæt X:"]
[null,"Kontrollen har ikke givet anledning til forbehold"]
[]
[null,"Kontrollen har givet anledning til følgende forbehold:"]
["1."]
["2."]
["3."]

{"sheet":"Liste","index":6,"n_rows":5,"n_cols":1,"rows_kept":5,"cut":false,"hidden":true,"merged":[]}
["(Vælg fra drop down-menu)"]
["I. Stat og selvstændige offentlige virksomheder"]
["II. Kommuner og regioner"]
["III. Mellemstore, store private virksomheder og velgørenhedsorganisationer"]
["VI. Små private virksomheder, enkeltpersoner og velgørenhedsorganisationer"]